{"text_format":"1","workbook":"xlsx","n_sheets":3,"sheets":["EVALUACIÓN","RESULTADOS","anterior"],"not_rendered":{"charts":2,"images":2,"macros":1,"external_links":0,"defined_names":2,"comments":1,"pivot_tables":0},"unopened":[],"bounds":{"document_bytes":16777216,"sheet_cells":100000,"rows_first":2000,"rows_last":500,"rows_between":2000,"halvings":0,"cell_chars":16384,"cell_head_chars":4096},"cells_cut":0,"cells_raw":0,"read":"whole","date_system":"1900"}

{"sheet":"EVALUACIÓN","index":0,"n_rows":77,"n_cols":13,"rows_kept":77,"cut":false,"hidden":false,"merged":[[0,2,0,3],[4,7,4,9],[2,4,2,6],[3,4,3,6],[3,7,3,9],[2,7,2,9],[2,2,2,3],[3,2,3,3],[20,2,22,2],[20,6,22,6],[4,4,4,6],[23,6,35,6],[10,0,11,0],[10,1,11,2],[10,3,11,3],[10,4,11,4],[10,5,11,5],[10,6,11,6],[72,0,75,0],[72,1,75,1],[72,2,75,2],[72,6,75,6],[54,6,57,6],[58,2,64,2],[58,6,64,6],[65,1,67,1],[65,2,67,2],[65,6,67,6],[36,0,67,0],[36,1,53,1],[36,2,44,2],[36,6,44,6],[45,2,47,2],[45,6,47,6],[0,0,0,1],[68,0,71,0],[68,1,71,1],[68,2,71,2],[68,6,71,6],[48,2,53,2],[48,6,53,6],[54,1,64,1],[54,2,57,2],[12,0,35,0],[12,1,22,1],[12,2,19,2],[12,6,19,6],[5,4,5,5],[23,1,35,1],[10,12,11,12],[8,0,8,12],[9,0,9,12],[10,8,11,8],[10,9,11,9],[10,7,11,7]]}
[null,null,"GESTIÓN DE SST PARA CONTRATISTAS Y PROVEEDORES",null,"Código",null,"NIVEL 2","NIVEL 1","MACROPROCESO"]
[null,null,null,null,"FOR-45-1-05-20 ",null,"Sistema de Gestión de Seguridad y Salud en el Trabajo","Sistema de Calidad Institucional","Efectividad Institucional"]
[null,"EMPRESA:",null,null,"FECHA Y HORA:"]
[null,"ÁREA DE TRABAJO:",null,null,"EVALUADO POR:"]
[null,"NÚMERO DE TRABAJADORES:",null,{"$f":"IF(C5>50,\"MAYOR A 50\",IF(C5<=10,\"MENORES DE 10\",\"DE 11 A 50\"))","v":"MENORES DE 10"},"NOMBRE DE QUIEN RECIBE LA EVALUACIÓN:",null,null,null,null,null,"BAJODE 11 A 50"]
[null,"NIVEL DE RIESGO ARL:",null,{"$f":"IF(C6<4,\"BAJO\",\"ALTO\")","v":"BAJO"},"CALIFICACIÓN:",null,{"$f":"IFERROR(IF(SUBTOTAL(9,F13:F76)/COUNTIFS(M13:M76,\"SI\")>100%,100%,SUBTOTAL(9,F13:F76)/COUNTIFS(M13:M76,\"SI\")),0%)","v":0}]
[]
[]
["ESTÁNDARES MÍNIMOS SG-SST - RESOLUCIÓN 312 DE 2019"]
["TABLA DE VALORES Y CALIFICACIÓN"]
["CICLO","ESTÁNDAR",null,"ÍTEM DEL ESTÁNDAR","CALIFICACIÓN","VALOR DEL ITEM","PESO PORCENTUAL","EVIDENCIA","PLAN DE ACCIÓN","RESPONSABLE",null,null,"¿APLICA?"]
[]
["I. PLANEAR","RECURSOS (10%)","Recursos financieros, técnicos,  humanos y de otra índole requeridos para coordinar y desarrollar el Sistema de Gestión de la Seguridad y Salud en el Trabajo (SG-SST)","1.1.1. Responsable del Sistema de Gestión de Seguridad y Salud en el Trabajo SG-SST",null,{"$f":"IF($M13=\"NO\",0,IF($E13=\"CUMPLE\",1,IF($E13=\"NO CUMPLE\",0,IF($E13=\"CUMPLE PARCIALMENTE\",0.5,IF($E13=\"NO APLICA\",1,\"\")))))","v":""},{"$f":"IFERROR(IF(SUBTOTAL(9,F13:F20)/COUNTIFS(M13:M20,\"SI\")*0.04>4%,4%,SUBTOTAL(9,F13:F20)/COUNTIFS(M13:M20,\"SI\")*0.04),0%)","v":0},null,null,null,"BAJOMENORES DE 10","BAJODE 11 A 50",{"$f":"IF($D$6=\"ALTO\",\"SI\",IF($D$5=\"MAYOR A 50\",\"SI\",IF($D$6&$D$5=$K13,\"SI\",IF($D$6&$D$5=$L13,\"SI\",\"NO\"))))","v":"SI"}]
[null,null,null,"1.1.2 Responsabilidades en el Sistema de Gestión de Seguridad y Salud en el Trabajo – SG-SST",null,{"$f":"IF($M14=\"NO\",0,IF($E14=\"CUMPLE\",1,IF($E14=\"NO CUMPLE\",0,IF($E14=\"CUMPLE PARCIALMENTE\",0.5,IF($E14=\"NO APLICA\",1,\"\")))))","v":0},null,null,null,null,null,null,{"$f":"IF($D$6=\"ALTO\",\"SI\",IF($D$5=\"MAYOR A 50\",\"SI\",IF($D$6&$D$5=$K14,\"SI\",IF($D$6&$D$5=$L14,\"SI\",\"NO\"))))","v":"NO"}]
[null,null,null,"1.1.3 Asignación de recursos para el Sistema de Gestión  de Seguridad y Salud en el Trabajo – SG-SST",null,0,null,null,null,null,null,"BAJODE 11 A 50","NO"]
[null,null,null,"1.1.4 Afiliación al Sistema General de Riesgos Laborales",null,"",null,null,null,null,"BAJOMENORES DE 10","BAJODE 11 A 50","SI"]
[null,null,null,"1.1.5 Identificación de trabajadores de alto riesgo y cotización de pensión especial",null,0,null,null,null,null,null,null,"NO"]
[null,null,null,"1.1.6 Conformación COPASST o Vigía",null,"",null,null,null,null,"BAJOMENORES DE 10","BAJODE 11 A 50","SI"]
[null,null,null,"1.1.7 Capacitación COPASST o Vigía",null,"",null,null,null,null,"BAJOMENORES DE 10","BAJODE 11 A 50","SI"]
[null,null,null,"1.1.8 Conformación Comité Convivencia",null,0,null,null,null,null,null,"BAJODE 11 A 50","NO"]
[null,null,"Capacitación en el Sistema de Gestión de la Seguridad y la Salud en el Trabajo","1.2.1 Programa Capacitación anual",null,0,{"$f":"IFERROR(IF(SUBTOTAL(9,F21:F23)/COUNTIFS(M21:M23,\"SI\")*0.06>6%,6%,SUBTOTAL(9,F21:F23)/COUNTIFS(M21:M23,\"SI\")*0.06),0%)","v":0},null,null,null,null,"BAJODE 11 A 50","NO"]
[null,null,null,"1.2.2 Inducción y Reinducción en Sistema de Gestión de Seguridad y Salud en el Trabajo SG-SST, actividades de Promoción y Prevención",null,0,null,null,null,null,null,null,"NO"]
[null,null,null,"1.2.3 Responsables del Sistema de Gestión de Seguridad y Salud en el Trabajo SG-SST con curso virtual de 50 horas",null,"",null,null,null,null,"BAJOMENORES DE 10",null,"SI"]
[null,"GESTIÓN INTEGRAL DEL SISTEMA DE GESTIÓN DE LA SEGURIDAD Y LA SALUD EN EL TRABAJO (15%)","Política de Seguridad y Salud en el Trabajo","2.1.1 Política del Sistema de Gestión de Seguridad y Salud en el Trabajo SG-SST firmada, fechada y comunicada al COPASST",null,"",{"$f":"IFERROR(IF(SUBTOTAL(9,F24:F36)/COUNTIFS(M24:M36,\"SI\")*0.15>15%,15%,SUBTOTAL(9,F24:F36)/COUNTIFS(M24:M36,\"SI\")*0.15),0%)","v":0},null,null,null,"BAJOMENORES DE 10","BAJODE 11 A 50","SI"]
[null,null,"Objetivos del Sistema de Gestión de la Seguridad y la Salud en el Trabajo SG-SST","2.2.1 Objetivos definidos, claros, medibles, cuantificables, con metas, documentados, revisados del SG-SST",null,0,null,null,null,null,null,null,"NO"]
[null,null,"Reglamento de Higiene y Seguridad Industrial","2.3.1 Se cuenta con el Reglamento de Higiene y Seguridad Vigente y actualizado",null,"",null,null,null,null,"BAJOMENORES DE 10","BAJODE 11 A 50","SI"]
[null,null,"Evaluación inicial del SG-SST","2.4.1 Evaluación inicial del SG-SST (Calificada ARL)",null,"",null,null,null,null,"BAJOMENORES DE 10","BAJODE 11 A 50","SI"]
[null,null,"Plan Anual de Trabajo","2.5.1 Plan anual de trabajo que identifica objetivos, metas, responsabilidad, recursos con cronograma y firmado",null,"",null,null,null,null,"BAJOMENORES DE 10","BAJODE 11 A 50","SI"]
[null,null,"Conservación de la documentación","2.6.1 Archivo o retención documental del Sistema de Gestión de Seguridad y Salud en el Trabajo SG-SST",null,0,null,null,null,null,null,"BAJODE 11 A 50","NO"]
[null,null,"Rendición de cuentas","2.7.1 Rendición sobre el desempeño",null,0,null,null,null,null,null,null,"NO"]
[null,null,"Normatividad nacional vigente y aplicable en materia de seguridad y salud en el trabajo","2.8.1 Matriz legal Requerimientos en SST",null,"",null,null,null,null,"BAJOMENORES DE 10","BAJODE 11 A 50","SI"]
[null,null,"Comunicación","2.9.1 Mecanismos de comunicación, auto reporte en Sistema de Gestión de Seguridad y Salud en el Trabajo SG-SST",null,0,null,null,null,null,null,null,"NO"]
[null,null,"Adquisiciones","2.10.1 Identificación, evaluación, para adquisición de productos y servicios en Sistema de Gestión de Seguridad y Salud en el Trabajo SG-SST",null,0,null,null,null,null,null,null,"NO"]
[null,null,"Normatividad vigente en la institución","2.11.1 La empresa identifica las normas de SST aplicables dentro del Campus de Uniandes?",null,"",null,null,null,null,"BAJOMENORES DE 10","BAJODE 11 A 50","SI"]
[null,null,"Contratación","2.12.1 Evaluación y selección de proveedores y contratistas",null,0,null,null,null,null,null,null,"NO"]
[null,null,"Gestión del cambio","2.13.1 Evaluación del impacto de cambios internos y externos en el Sistema de Gestión de Seguridad y Salud en el Trabajo SG-SST - Gestión del cambio",null,0,null,null,null,null,null,null,"NO"]
["II. HACER","GESTIÓN DE LA SALUD (20%)","Condiciones de salud en el trabajo","3.1.1 Descripción sociodemográfica – Diagnóstico de condiciones de salud",null,0,{"$f":"IFERROR(IF(SUBTOTAL(9,F37:F45)/COUNTIFS(M37:M45,\"SI\")*0.09>9%,9%,SUBTOTAL(9,F37:F45)/COUNTIFS(M37:M45,\"SI\")*0.09),0%)","v":0},null,null,null,null,"BAJODE 11 A 50","NO"]
[null,null,null,"3.1.2 Actividades de Promoción y Prevención en Salud",null,"",null,null,null,null,"BAJOMENORES DE 10","BAJODE 11 A 50","SI"]
[null,null,null,"3.1.3 Perfiles de cargo definidos",null,0,null,null,null,null,null,null,"NO"]
[null,null,null,"3.1.4 Realización de Evaluaciones Médicas Ocupacionales -Peligros- Periodicidad- Comunicación al Trabajador",null,"",null,null,null,null,"BAJOMENORES DE 10","BAJODE 11 A 50","SI"]
[null,null,null,"3.1.5 Custodia de Historias Clínicas",null,0,null,null,null,null,null,null,"NO"]
[null,null,null,"3.1.6 Restricciones y recomendaciones médico/laborales",null,0,null,null,null,null,null,"BAJODE 11 A 50","NO"]
[null,null,null,"3.1.7 Estilos de vida y entornos saludables (controles tabaquismo, alcoholismo, farmacodependencia y otros)",null,0,null,null,null,null,null,null,"NO"]
[null,null,null,"3.1.8 Agua potable, servicios sanitarios y disposición de basuras",null,0,null,null,null,null,null,null,"NO"]
[null,null,null,"3.1.9 Eliminación adecuada de residuos sólidos, líquidos o gaseosos",null,0,null,null,null,null,null,null,"NO"]
[null,null,"Registro, reporte e investigación de las enfermedades laborales, los incidentes y accidentes del trabajo","3.2.1 Reporte de Accidentes de Trabajo y Enfermedad Laboral a la ARL",null,0,{"$f":"IFERROR(IF(SUBTOTAL(9,F46:F48)/COUNTIFS(M46:M48,\"SI\")*0.05>5%,5%,SUBTOTAL(9,F46:F48)/COUNTIFS(M46:M48,\"SI\")*0.05),0%)","v":0},null,null,null,null,"BAJODE 11 A 50","NO"]
[null,null,null,"3.2.2 Investigación de incidentes, accidentes y enfermedades laborales",null,0,null,null,null,null,null,"BAJODE 11 A 50",{"$f":"IF($D$6=\"ALTO\",\"SI\",IF($D$5=\"MAYOR A 50\",\"SI\",IF($D$6&$D$5=$K47,\"SI\",IF($D$6&$D$5=$L47,\"SI\",\"NO\"))))","v":"NO"}]
[null,null,null,"3.2.3 Registro y análisis estadístico de accidentes y enfermedades laborales",null,0,null,null,null,null,null,null,"NO"]
[null,null,"Mecanismos de vigilancia de las condiciones de salud de los trabajadores","3.3.1 Medición de la frecuencia de la accidentalidad",null,0,{"$f":"IFERROR(IF(SUBTOTAL(9,F49:F54)/COUNTIFS(M49:M54,\"SI\")*0.06>6%,6%,SUBTOTAL(9,F49:F54)/COUNTIFS(M49:M54,\"SI\")*0.06),0%)","v":0},null,null,null,null,null,"NO"]
[null,null,null,"3.3.2 Medición de la severidad de la accidentalidad",null,0,null,null,null,null,null,null,"NO"]
[null,null,null,"3.3.3 Medición de la mortalidad por Accidentes de Trabajo",null,0,null,null,null,null,null,null,"NO"]
[null,null,null,"3.3.4 Medición de la prevalencia de Enfermedad Laboral",null,0,null,null,null,null,null,null,"NO"]
[null,null,null,"3.3.5 Medición de la incidencia de Enfermedad Laboral",null,0,null,null,null,null,null,null,"NO"]
[null,null,null,"3.3.6 Medición del ausentismo por causa médica",null,0,null,null,null,null,null,null,"NO"]
[null,"GESTIÓN DE PELIGROS Y RIESGOS (30%)","Identificación de peligros, evaluación y valoración de riesgos","4.1.1 Metodología para la identificación de peligros, evaluación y valoración de los riesgos",null,0,{"$f":"IFERROR(IF(SUBTOTAL(9,F55:F58)/COUNTIFS(M55:M58,\"SI\")*0.15>15%,15%,SUBTOTAL(9,F55:F58)/COUNTIFS(M55:M58,\"SI\")*0.15),0%)","v":0},null,null,null,null,null,"NO"]
[null,null,null,"4.1.2 Identificación de peligros y evaluación de riesgos en todos los niveles de la empresa (Minímo con revisión anual)",null,"",null,null,null,null,"BAJOMENORES DE 10","BAJODE 11 A 50","SI"]
[null,null,null,"4.1.3 Identificación de sustancias catalogadas como carcinógenas o con toxicidad aguda",null,0,null,null,null,null,null,null,"NO"]
[null,null,null,"4.1.4 Realización mediciones ambientales, químicos, físicos y biológicos",null,0,null,null,null,null,null,null,"NO"]
[null,null,"Medidas de prevención y control para intervenir los peligros/riesgos","4.2.1 Implementación de medidas de prevención y control de peligros/riesgos identificados",null,"",{"$f":"IFERROR(IF(SUBTOTAL(9,F59:F65)/COUNTIFS(M59:M65,\"SI\")*0.15>15%,15%,SUBTOTAL(9,F59:F65)/COUNTIFS(M59:M65,\"SI\")*0.15),0%)","v":0},null,null,null,"BAJOMENORES DE 10",null,"SI"]
[null,null,null,"4.2.2 Verificación de aplicación de medidas de prevención y control por parte de los trabajadores",null,0,null,null,null,null,null,null,"NO"]
[null,null,null,"4.2.3 Elaboración de procedimientos, instructivos, fichas o protocolos de seguridad",null,0,null,null,null,null,null,null,"NO"]
[null,null,null,"4.2.4 Realización de inspecciones sistemáticas a las instalaciones, maquinaria o equipos con la participación del COPASST",null,0,null,null,null,null,null,null,"NO"]
[null,null,null,"4.2.5 La empresa presta servicios a la Universidad en (Transporte terrestre, conexiones eléctricas alto voltaje, construcción) y cuentan con los programas establecidos por ley como Plan Estratégico de seguridad víal, alturas, Retie? (Si aplica describirlo en evidencia)",null,"",null,null,null,null,"BAJOMENORES DE 10","BAJODE 11 A 50","SI"]
[null,null,null,"4.2.6 Mantenimiento periódico de instalaciones, equipos, máquinas y/o herramientas",null,0,null,null,null,null,null,"BAJODE 11 A 50","NO"]
[null,null,null,"4.2.7 Entrega de Elementos de Protección Personal EPP, se verifica con contratistas y subcontratistas",null,0,null,null,null,null,null,"BAJODE 11 A 50","NO"]
[null,"GESTIÓN DE AMENAZAS (10%)","Plan de prevención, preparación y respuesta ante emergencias","5.1.1 Se cuenta con el Plan de Prevención, Preparación y Respuesta ante emergencias",null,0,{"$f":"IFERROR(IF(SUBTOTAL(9,F66:F68)/COUNTIFS(M66:M68,\"SI\")*0.1>10%,10%,SUBTOTAL(9,F66:F68)/COUNTIFS(M66:M68,\"SI\")*0.1),0%)","v":0},null,null,null,null,"BAJODE 11 A 50","NO"]
[null,null,null,"5.1.2 Se ha realizado la identificación de las amenazas y evaluación de la vulnerabilidad de la empresa",null,"",null,null,null,null,"BAJOMENORES DE 10","BAJODE 11 A 50","SI"]
[null,null,null,"5.1.3 Brigada de prevención conformada, capacitada y dotada",null,0,null,null,null,null,null,"BAJODE 11 A 50","NO"]
["III. VERIFICAR","VERIFICACIÓN DEL SG-SST (5%)","Gestión y resultados del SG-SST","6.1.1 Definición de indicadores del SG-SST de acuerdo condiciones de la empresa",null,0,{"$f":"IFERROR(IF(SUBTOTAL(9,F69:F72)/COUNTIFS(M69:M72,\"SI\")*0.05>5%,5%,SUBTOTAL(9,F69:F72)/COUNTIFS(M69:M72,\"SI\")*0.05),0%)","v":0},null,null,null,null,null,"NO"]
[null,null,null,"6.1.2 Las empresa adelanta auditoría al SG-SST por lo menos una vez al año",null,"",null,null,null,null,"BAJOMENORES DE 10","BAJODE 11 A 50","SI"]
[null,null,null,"6.1.3 Revisión anual por la alta dirección, resultados y alcance de la auditoría",null,0,null,null,null,null,null,"BAJODE 11 A 50","NO"]
[null,null,null,"6.1.4 Planificación auditorías con el COPASST",null,0,null,null,null,null,null,null,"NO"]
["IV. ACTUAR","MEJORAMIENTO (10%)","Acciones preventivas y correctivas con base en los resultados del SG-SST","7.1.1 Definición de acciones preventivas y correctivas con base en resultados del SG-SST",null,0,{"$f":"IFERROR(IF(SUBTOTAL(9,F73:F76)/COUNTIFS(M73:M76,\"SI\")*0.1>10%,10%,SUBTOTAL(9,F73:F76)/COUNTIFS(M73:M76,\"SI\")*0.1),0%)","v":0},null,null,null,null,null,"NO"]
[null,null,null,"7.1.2 Acciones de mejora conforme a revisión de la alta dirección",null,0,null,null,null,null,null,null,"NO"]
[null,null,null,"7.1.3 Acciones de mejora con base en investigaciones de accidentes de trabajo y enfermedades laborales",null,0,null,null,null,null,null,null,"NO"]
[null,null,null,"7.1.4 Elaboración Plan de Mejoramiento e implementación de medidas y acciones correctivas solicitadas por autoridades y ARL",null,0,null,null,null,null,null,null,"NO"]
[null,null,null,null,null,null,null,null,null,"No DE ESTÁNDARES",null,null,{"$f":"COUNTIFS($M$13:$M$76,\"SI\")","v":18}]

{"sheet":"RESULTADOS","index":1,"n_rows":30,"n_cols":3,"rows_kept":30,"cut":false,"hidden":false,"merged":[[0,0,0,2],[28,0,28,2],[29,0,29,2]]}
["SISTEMA DE GESTIÓN"]
["CICLO","A OBTENER","RESULTADO"]
["I. PLANEAR",0.25,{"$f":"EVALUACIÓN!G13+EVALUACIÓN!G21+EVALUACIÓN!G24","v":0}]
["II. HACER",0.6,{"$f":"EVALUACIÓN!G37+EVALUACIÓN!G46+EVALUACIÓN!G49+EVALUACIÓN!G55+EVALUACIÓN!G59+EVALUACIÓN!G66","v":0}]
["III. VERIFICAR",0.05,{"$f":"EVALUACIÓN!G69","v":0}]
["IV. ACTUAR",0.1,{"$f":"EVALUACIÓN!G73","v":0}]
[]
[]
[]
[]
[]
[]
[]
[]
[]
["GRUPO DE ESTANDARES","A OBTENER","RESULTADO"]
["RECURSOS",0.1,{"$f":"EVALUACIÓN!G13+EVALUACIÓN!G21","v":0}]
["GESTIÓN INTEGRAL DEL SISTEMA DE GESTIÓN DE LA SEGURIDAD Y LA SALUD EN EL TRABAJO",0.15,{"$f":"EVALUACIÓN!G24","v":0}]
["GESTIÓN DE LA SALUD ",0.2,{"$f":"EVALUACIÓN!G37+EVALUACIÓN!G46+EVALUACIÓN!G49","v":0}]
["GESTIÓN DE PELIGROS Y RIESGOS",0.3,{"$f":"EVALUACIÓN!G55+EVALUACIÓN!G59","v":0}]
["GESTIÓN DE AMENAZAS",0.1,{"$f":"EVALUACIÓN!G66","v":0}]
["VERIFICACIÓN DEL SG-SST",0.05,{"$f":"EVALUACIÓN!G69","v":0}]
["MEJORAMIENTO",0.1,{"$f":"EVALUACIÓN!G73","v":0}]
[]
[]
[]
[]
[]
["TOTAL"]
[{"$f":"EVALUACIÓN!G6","v":0}]

{"sheet":"anterior","index":2,"n_rows":37,"n_cols":8,"rows_kept":37,"cut":false,"hidden":true,"merged":[[10,2,10,5],[10,6,10,7],[11,2,11,5],[11,6,11,7],[6,1,6,5],[7,0,7,4],[7,5,7,7],[8,0,8,7],[9,2,9,5],[9,6,9,7],[5,1,5,5],[5,6,5,7],[0,0,3,0],[0,1,3,6],[0,7,1,7],[2,7,3,7],[4,0,4,7]]}
[null,"AUTOEVALUACION SG-SST- PROVEEDORES ",null,null,null,null,null,"CÓDIGO\nPRO-27-1-05-01"]
[]
[null,null,null,null,null,null,null,"VERSIÓN \n02"]
[]
["De conformidad con lo establecido en Decreto 1072/15 y Resolución 0312/19, se define y aplica la presente autoevaluación, con la cual se busca mantener alineado y actualizado el sistema de gestión de SST en la Universidad de los Andes"]
["NOMBRE DEL PROVEEDOR",null,null,null,null,null,"NIT"]
["CIUDAD",null,null,null,null,null,"DIRECCION","TELEFONO"]
["NUMERO DE TELEFONO/O MOVIL",null,null,null,null,"PRODUCTOS DE INTERES PARA UNIANDES"]
["PRINCIPALES CONTACTOS"]
["CARGO","NOMBRE","TELEFONO",null,null,null,"CORREO ELECTRONICO"]
["GERENTE GENERAL"]
["RESPONSABLE DE SG-SST"]
["ASPECTO NORMATIVO","REQUERIMIENTO","CUMPLE *Marque Uno","PARCIALMENTE  *Marque 0,5","NO CUMPLE *Marque Cero","NO APLICA  *Marque  1","EVIDENCIA DE CUMPLIMIENTO","OBSERVACIONES"]
["Política SST","Se ha definido una política de Seguridad y Salud en el Trabajo, firmada, Publicada y divulgada?"]
["Obligaciones de los empleadores","La  empresa  tiene responsable del SG-SST y cuenta con acreditación como mínimo formación (50 hrs) por el SENA u otro organismo en   seguridad y salud en el trabajo."]
["Obligaciones de los empleadores","Cuenta con el Copasst o Vigia de SST vigente"]
["Obligaciones de los empleadores","Desarrolló su autoevaluación de SST?"]
["Obligaciones de los empleadores","Se cuenta con el Reglamento de Higiene y Seguridad Vigente y actualizado"]
["Obligaciones de los empleadores","La empresa realiza el pago de aportes de seguridad social a tiempo"]
["Obligaciones de los empleadores","Se tiene establecido el plan anual de trabajo para alcanzar cada uno de los objetivos en el cual se especificaron metas, actividades,responsables, recursos, cronograma y se encuentra firmado por el empleador"]
["Obligaciones de los empleadores","La empresa cuenta con certificación de la ARL en cumplimiento del SG-SST  u otra certificación vigente?"]
["Obligaciones de los empleadores","Se ha realizado la identificación de los peligros, evaluación y valoración de los riesgos; la cual debe ser anual."]
["Obligaciones de los empleadores","La empresa cuenta programa de evalución y promoción en salud?"]
["Obligaciones de los empleadores","Se ha realizado la identificación de las amenazas y evaluación de la vulnerabilidad de la empresa."]
["Obligaciones de los empleadores","La empresa cuenta con programa de control y  certificaciones de competencias del personal para desarrrollar tareas de alto riesgo (Trabajo en alturas, espacios confinados, atmosferas peligrosas, conexiones eléctricas)?"]
["Obligaciones de los empleadores","La empresa presta servicios a la Universidad en (Transporte terrestre, conexiones eléctricas alto voltaje, construcción) y cuentan con los programas establecidos por ley como Plan Estratégico de seguridad víal, alturas, Retie? Favor describirlo si aplica en la columna de evidencia de cumplimiento"]
["Obligaciones de los empleadores","La empresa posee su matriz legal en SST?"]
["Documentación","La empresa identifica las normas de SST aplicables dentro del Campus de Uniandes?"]
["Mejora Contínua","La gerencia de la empresa realiza la revisión del SG-SST anualmente?"]
[null,"TOTAL",{"$f":"SUM(C14:C29)","v":0},{"$f":"SUM(D14:D29)","v":0},{"$f":"SUM(E14:E29)","v":0},{"$f":"SUM(F14:F29)","v":0}]
[null,"Calificación total",{"$f":"(C30+D30+E30)/(16-F30)","v":0}]
["OBSERVACIONES:"]
["La información aquí registrada puede estar sujeta a verificación por parte de la Universidad."]
["Esta información debe ser diligenciada y firmada por el representante del Sistema de Gestión en Salud, Seguridad en el trabajo y Ambiente y/o representante legal."]
[]
[]
["FIRMA REPRESENTANTE DEL SG-SST"]